bitfinex/quotes_ETHUSD_20220227
["timestamp","ask_amount","ask_price","bid_price","bid_amount"]
[1645954662765,0.51577145,2752.7,2752.0,0.00151693]
[1645954662962,0.6643,2752.7,2752.5,0.00465251]
[1645954663203,0.82565901,2752.7,2752.5,0.00465251]
[1645954663402,0.82565901,2752.7,2751.9,0.96003996]
[1645954663603,0.46135901,2752.7,2751.9,0.96003996]
[1645954665609,0.46135901,2752.7,2752.4,1.25237321]
[1645954665812,0.46135901,2752.7,2752.4,0.6418229]
[1645954666211,0.3,2752.7,2752.4,0.6418229]
[1645954666850,0.47241155,2752.7,2751.9,3.50151125]
[1645954667048,0.47241155,2752.7,2751.9,0.00151125]
[1645954667248,0.47241155,2752.7,2751.9,3.50151125]
[1645954667447,0.47241155,2752.7,2751.9,3.86581125]
[1645954667448,0.3,2752.7,2751.9,3.86581125]
[1645954667648,0.3,2752.7,2752.2,0.00545427]
[1645954668250,0.01695125,2752.8,2752.2,0.00545427]
[1645954668551,0.01695125,2752.8,2752.5,1.42781699]
[1645954669151,0.01695125,2752.8,2752.3,0.00545397]
[1645954669756,0.01695125,2752.8,2751.9,0.00151125]
[1645954669757,0.31695125,2752.8,2751.9,0.00151125]
[1645954669952,0.49632455,2752.8,2751.9,0.00151125]
[1645954670157,0.01695125,2752.8,2752.4,0.00545388]
[1645954670354,0.01695125,2752.8,2752.5,1.20858795]
[1645954672296,0.01695125,2752.8,2752.5,1.57288795]
[1645954675456,0.01695125,2752.8,2752.5,2.11787187]
[1645954676257,0.01695125,2752.8,2752.5,1.75357187]
[1645954676457,0.01695125,2752.8,2752.5,1.20858795]
[1645954679093,0.00592826,2753.0,2752.5,12.99288795]
[1645954679094,0.00517951,2753.0,2752.5,12.99288795]
[1645954679292,4.4325462,2753.4,2752.5,12.99288795]
[1645954679293,4.408836,2753.4,2752.9,0.3643]
[1645954679494,0.68869864,2754.1,2753.3,0.3643]
[1645954679691,0.68869864,2754.1,2753.4,3.5]
[1645954679692,0.68773864,2754.1,2753.4,3.5]
[1645954679895,0.68773864,2754.2,2753.5,0.3643]
[1645954680193,0.68773864,2754.2,2753.4,3.5]
[1645954680194,0.00096,2754.3,2754.0,1.19797923]
[1645954680392,0.68773864,2754.4,2754.0,1.19797923]
[1645954680999,3.14329274,2754.5,2754.0,1.19797923]
[1645954681296,3.14329274,2754.5,2753.7,4.5]
[1645954681297,0.36062501,2754.4,2753.7,4.5]
[1645954681494,0.36062501,2754.4,2753.8,1.16008243]
[1645954681944,0.00428852,2754.2,2753.8,1.16008243]
[1645954682147,0.36062501,2754.1,2753.8,1.16008243]
[1645954682344,0.36062501,2754.1,2753.3,4.5]
[1645954682545,0.36062501,2754.0,2753.4,1.16040951]
[1645954682844,0.69202716,2754.2,2753.4,1.16040951]
[1645954682845,0.36062501,2753.9,2753.4,1.16040951]
[1645954683045,0.36062501,2753.8,2753.4,1.16040951]
[1645954683245,0.00592819,2753.8,2753.4,1.16040951]
[1645954683445,0.36062501,2753.7,2753.4,1.16040951]
[1645954683759,0.36062501,2753.7,2753.6,1.13941661]
[1645954683947,0.36062501,2753.7,2753.4,1.16040951]
[1645954683948,0.36062501,2753.7,2753.2,11.8]
[1645954684269,0.36062501,2753.7,2753.3,1.16047713]
[1645954684449,0.36062501,2753.6,2753.3,1.16047713]
[1645954684645,0.36062501,2753.5,2752.7,3.2911]
[1645954684848,0.36062501,2753.7,2752.8,1.16054218]
[1645954685048,0.36062501,2753.4,2752.8,1.16054218]
[1645954685246,1.43834983,2753.8,2752.8,1.16054218]
[1645954685247,0.36062501,2753.6,2752.8,1.16054218]
[1645954685447,1.23232822,2753.8,2753.2,1.18926214]
[1645954685448,0.36062501,2753.3,2753.2,1.18926214]
[1645954685703,0.38433564,2753.7,2753.2,2.34980432]
[1645954685901,0.36062501,2753.6,2753.3,1.16054069]
[1645954686501,0.36062501,2753.6,2753.2,0.64090668]
[1645954686706,0.36062501,2753.6,2753.3,1.17051275]
[1645954686906,0.36062501,2753.5,2753.3,1.17051275]
[1645954687106,0.36062501,2753.4,2753.3,1.17051275]
[1645954688409,0.0059284,2753.5,2753.4,6.8606]
[1645954688410,2.84e-05,2753.5,2753.4,6.8606]
[1645954688608,2.84e-05,2753.5,2753.4,10.3606]
[1645954688810,2.84e-05,2753.5,2753.4,7.8606]
[1645954689010,2.45621887,2754.2,2753.4,7.8606]
[1645954689210,2.45717887,2754.2,2753.4,7.8606]
[1645954689443,0.00096,2754.2,2753.4,7.8606]
[1645954689644,0.00096,2754.3,2753.5,3.8643]
[1645954689851,0.01910862,2753.7,2753.5,3.8643]
[1645954690050,0.01910862,2753.7,2753.6,3.5]
[1645954690252,0.01910862,2753.7,2753.6,4.5]
[1645954691048,0.01490862,2753.7,2753.6,4.5]
[1645954691453,0.01490862,2753.7,2753.6,1.0]
[1645954691650,0.01490862,2753.7,2753.6,4.5]
[1645954691852,0.01490862,2753.7,2753.6,3.5]
[1645954692151,0.01490862,2753.7,2753.6,4.5]
[1645954693114,3.624e-05,2753.8,2753.7,0.90799]
[1645954693314,3.624e-05,2753.8,2753.7,4.40799]
[1645954693715,0.14616,2754.8,2753.7,6.43540007]
[1645954693918,0.14616,2754.8,2754.6,1.12459778]
[1645954694119,0.1452,2754.8,2753.7,7.8238]
[1645954694315,0.00096,2754.7,2753.7,4.75]
[1645954694518,0.14616,2754.9,2753.7,4.75]
[1645954695318,0.00428111,2754.4,2753.8,1.02797407]
[1645954695518,0.00428111,2754.4,2753.9,3.5]
[1645954696219,0.14616,2754.9,2754.4,1.26307881]
[1645954696421,0.02370573,2754.7,2753.9,3.5]
[1645954696627,0.02370573,2754.7,2753.7,4.5]
[1645954697447,0.00096,2754.8,2753.7,4.5]
[1645954697648,0.02466561,2754.8,2754.4,1.25029762]
[1645954697847,0.02370561,2754.8,2754.4,1.25029762]
[1645954698549,0.4452,2755.0,2753.7,4.8643]
[1645954698748,0.00592705,2754.7,2753.7,4.5]
[1645954698951,0.00592705,2754.7,2753.6,0.25]
[1645954699159,0.1452,2754.6,2753.6,0.25]
[1645954699349,0.00096,2754.5,2753.4,0.3606]
[1645954699753,0.00096,2754.5,2754.2,1.38939172]
[1645954699951,0.5095,2754.6,2754.2,1.38939172]
[1645954700153,0.02370606,2754.5,2754.2,1.38939172]
[1645954701005,0.1452,2754.6,2754.2,1.38939172]
[1645954701214,0.00563784,2754.5,2754.2,1.38939172]
[1645954702209,0.00096,2754.7,2754.2,1.38939172]
[1645954702409,0.00563784,2754.5,2754.2,1.38939172]
[1645954702612,0.00563784,2754.5,2753.4,4.8606]
[1645954703309,0.00096,2754.7,2753.4,4.8606]
[1645954703708,0.00096,2754.7,2754.6,1.35961678]
[1645954703909,0.3,2754.8,2754.6,1.35961678]
[1645954704109,1.0148383,2755.0,2754.6,1.35961678]
[1645954704377,0.4452,2755.0,2754.6,1.35961678]
[1645954704562,0.3,2755.0,2753.7,0.25]
[1645954704763,1.18928513,2754.9,2753.6,4.8643]
[1645954705361,1.08928513,2754.9,2753.6,4.5]
[1645954705562,1.45358513,2754.9,2753.6,4.5]
[1645954705765,1.44786,2754.9,2753.6,4.5]
[1645954706063,1.44786,2754.9,2754.4,1.31475751]
[1645954706064,0.02289823,2754.8,2754.4,1.31475751]
[1645954706467,0.02289823,2754.8,2753.6,5.28137877]
[1645954706664,0.38815823,2754.8,2753.6,5.28137877]
[1645954707068,0.36526,2754.8,2753.6,5.28137877]
[1645954707270,0.00572544,2754.3,2753.6,5.03137877]
[1645954707869,0.00572544,2754.3,2754.0,1.07421486]
[1645954708392,0.00567228,2754.3,2754.0,1.07421486]
[1645954709495,0.00096,2754.8,2754.0,1.07421486]
[1645954709692,0.00567228,2754.3,2754.0,1.07421486]
[1645954710693,0.00096,2754.8,2754.0,1.07421486]
[1645954710893,0.00567228,2754.3,2754.0,1.07421486]
[1645954711951,0.14616,2754.8,2754.0,1.07421486]
[1645954712158,0.00568033,2754.3,2754.0,1.07421486]
[1645954713053,0.00096,2754.7,2754.0,1.07421486]
[1645954713353,0.00568033,2754.3,2754.0,1.07421486]
[1645954714052,0.00568033,2754.3,2754.1,3.5]
[1645954714253,0.00096,2754.8,2754.1,3.5]
[1645954714452,0.02271792,2754.7,2753.9,3.5]
[1645954714656,0.3426421,2754.6,2754.0,1.17243636]
[1645954715693,0.005679,2754.4,2754.1,1.07307318]
[1645954716692,0.00096,2754.8,2754.6,1.12669538]
[1645954716901,0.36592815,2754.8,2754.7,3.5]
[1645954717498,0.0227127,2754.8,2754.7,3.5]
[1645954717698,0.0227127,2754.8,2754.7,4.68283933]
[1645954717897,0.00096,2755.2,2754.7,4.68283933]
[1645954718099,0.33362315,2755.2,2754.7,3.5]
[1645954719363,0.33362315,2755.2,2754.8,1.54674303]
[1645954719557,0.33362315,2755.2,2754.9,4.68237655]
[1645954719753,0.33362315,2755.2,2754.9,4.5]
[1645954720351,0.33362315,2755.2,2754.9,4.8643]
[1645954720949,0.33362315,2755.2,2754.9,4.5]
[1645954721750,0.33945381,2755.2,2754.9,4.5]
[1645954721955,0.33362315,2755.1,2754.9,4.8643]
[1645954722154,0.33362315,2755.1,2754.9,1.3643]
[1645954722353,0.33362315,2755.1,2755.0,3.5]
[1645954722757,0.33355455,2755.1,2755.0,3.5]
[1645954723101,0.33938524,2755.1,2755.0,3.5]
[1645954723902,0.33355455,2755.1,2754.8,4.5]
[1645954724104,0.00564676,2755.2,2754.9,1.54644465]
[1645954724303,0.33366578,2755.1,2754.9,0.3643]
[1645954724702,0.33366578,2755.1,2755.0,3.5]
[1645954725302,0.33366578,2755.1,2754.9,0.3643]
[1645954725502,0.00564676,2755.2,2755.0,3.5]
[1645954725704,0.00564676,2755.2,2755.1,1.15348093]
[1645954725902,0.33919605,2755.2,2755.1,1.15348093]
[1645954726104,0.33919605,2755.2,2755.1,4.65348093]
[1645954726305,0.5,2755.3,2755.1,7.19918383]
[1645954726504,0.50564671,2755.3,2755.2,1.1814029]
[1645954726950,0.02258345,2755.7,2755.3,7.3699]
[1645954727154,0.02258345,2755.7,2755.4,5.02244783]
[1645954727350,0.08468632,2755.8,2755.5,1.15811506]
[1645954727549,0.00096,2756.2,2755.5,1.15811506]
[1645954727857,0.00096,2756.2,2755.4,4.8643]
[1645954727858,0.35608041,2756.2,2755.4,4.8643]
[1645954728049,0.35704041,2756.2,2755.4,4.8643]
[1645954729453,0.35704041,2756.2,2755.4,4.5]
[1645954729854,0.35704041,2756.2,2755.4,4.8643]
[1645954730254,6.30893864,2756.7,2755.5,1.52034936]
[1645954730255,7.327e-05,2755.9,2755.5,1.52034936]
[1645954730463,7.327e-05,2755.9,2755.6,4.0094]
[1645954730706,7.327e-05,2755.9,2755.7,2.42732857]
[1645954730904,7.327e-05,2755.9,2755.8,3.5]
[1645954731104,8.19283864,2757.0,2756.0,1.27153]
[1645954731105,0.3553734,2756.3,2756.0,1.27153]
[1645954731311,0.00096,2756.8,2756.5,1.28684569]
[1645954731506,0.83283864,2757.2,2756.6,3.5]
[1645954731507,0.00096,2757.2,2756.6,3.5]
[1645954731804,0.83283864,2757.3,2756.6,3.5]
[1645954731805,0.00096,2757.3,2756.6,3.5]
[1645954732008,0.83263864,2757.4,2756.5,1.28684569]
[1645954732207,0.00096,2757.3,2756.7,0.3643]
[1645954732410,0.91121162,2757.7,2756.9,0.3643]
[1645954732411,0.68773864,2757.7,2756.9,0.3643]
[1645954732614,7.36,2757.7,2757.1,0.3643]
[1645954732812,0.1449,2758.2,2757.0,3.5]
[1645954732813,0.21951271,2759.0,2757.6,5.0]
[1645954733017,3.33501105,2759.9,2757.7,3.8643]
[1645954733018,1.06086648,2759.9,2757.7,3.8643]
[1645954733410,0.04035806,2758.8,2757.9,0.3643]
[1645954733711,0.58336242,2759.8,2757.9,0.3643]
[1645954733910,0.3643,2759.3,2757.7,0.1449]
[1645954734109,0.3643,2759.3,2757.5,0.54392228]
[1645954734110,0.1449,2759.2,2757.5,0.54392228]
[1645954734369,0.3643,2759.1,2757.4,3.5]
[1645954734562,0.1449,2759.0,2757.3,4.5772]
[1645954734763,0.1449,2759.0,2757.4,3.5]
[1645954734965,0.00593202,2758.4,2757.5,1.20897728]
[1645954735765,0.00593202,2758.4,2757.4,4.5]
[1645954736065,0.00096,2758.7,2757.4,4.5]
[1645954736066,0.00558916,2758.1,2757.4,4.5]
[1645954736665,0.00558916,2758.1,2757.4,1.0]
[1645954736864,0.00558916,2758.1,2757.4,3.5]
[1645954737070,0.00096,2758.4,2757.3,1.0]
[1645954737273,0.00096,2758.4,2757.2,5.05]
[1645954737470,0.00558928,2757.9,2757.2,5.05]
[1645954737670,0.00558928,2757.9,2757.2,1.0]
[1645954737870,0.00558928,2757.9,2757.3,1.19654976]
[1645954738105,0.00558928,2757.9,2757.0,3.6449]
[1645954738106,0.00558928,2757.9,2757.0,4.6449]
[1645954738305,0.00096,2758.0,2757.0,1.0]
[1645954738703,0.00558937,2757.7,2756.8,7.693]
[1645954738902,0.00558937,2757.7,2756.8,1.0]
[1645954739105,0.00558937,2757.7,2757.1,1.08117131]
[1645954739303,0.00558937,2757.7,2757.1,1.03117131]
[1645954739505,0.00096,2758.0,2757.1,1.03117131]
[1645954739704,0.0055895,2757.5,2757.1,1.03117131]
[1645954740106,0.10714449,2758.0,2757.5,0.00434066]
[1645954740307,0.10618449,2758.0,2757.5,0.00434066]
[1645954740505,0.10618449,2758.0,2757.9,1.3614774]
[1645954740709,0.02553307,2758.4,2757.9,1.3614774]
[1645954741108,0.02553307,2758.4,2757.5,0.00434066]
[1645954742154,0.02553307,2758.4,2757.8,1.26102042]
[1645954742551,0.02553307,2758.4,2757.5,0.00434066]
[1645954743652,1.07702221,2758.4,2757.6,1.03346044]
[1645954744153,1.07702221,2758.4,2757.5,0.00434066]
[1645954744557,0.00593217,2758.1,2757.5,0.00434066]
[1645954745356,0.00593217,2758.1,2757.5,3.80434066]
[1645954745598,0.02649307,2758.4,2757.9,1.41840094]
[1645954745815,0.13822967,2758.4,2757.9,1.41840094]
[1645954746707,0.02553307,2758.4,2758.0,3.5]
[1645954746905,0.02553307,2758.4,2757.9,1.41840094]
[1645954747105,0.00593208,2758.3,2757.9,1.41840094]
[1645954747505,0.00593208,2758.3,2757.9,2.32498974]
[1645954748006,0.02553307,2758.4,2757.9,2.32498974]
[1645954748606,0.02553307,2758.4,2757.9,13.44498974]
[1645954748807,0.02553307,2758.4,2757.9,14.74498974]
[1645954749010,0.02553307,2758.4,2758.0,0.1449]
[1645954749208,0.01645956,2758.9,2758.0,0.1449]
[1645954749450,0.00574435,2758.3,2758.0,0.1449]
[1645954750252,0.00574435,2758.3,2757.9,1.0]
[1645954750451,0.00096,2758.6,2757.5,0.00434066]
[1645954750651,0.00574435,2758.3,2757.5,0.00434066]
[1645954751053,1.31559557,2758.3,2757.5,0.00434066]
[1645954751653,1.30985122,2758.3,2757.5,0.00434066]
[1645954751853,0.00565975,2758.0,2757.5,0.00434066]
[1645954752661,0.3643,2757.9,2757.5,0.00434066]
[1645954753119,0.1449,2757.8,2757.5,0.00434066]
[1645954753518,1.52810862,2757.7,2757.5,0.00434066]
[1645954753724,2.72500862,2757.7,2757.5,0.00434066]
[1645954754422,2.73028415,2757.7,2757.5,0.00434066]
[1645954755223,2.72500862,2757.7,2757.5,0.00434066]
[1645954755422,2.73029654,2757.7,2757.5,0.00434066]
[1645954756422,2.72500862,2757.7,2757.5,0.00434066]
[1645954756622,2.73029654,2757.7,2757.5,0.00434066]
[1645954757648,2.72500862,2757.7,2757.5,0.00434066]
[1645954757851,2.73029654,2757.7,2757.5,0.00434066]
[1645954758753,2.72500862,2757.7,2757.5,0.00434066]
[1645954758950,3.8643,2757.6,2757.5,0.00434066]
[1645954759151,6.9128,2757.6,2757.5,0.00434066]
[1645954759557,13.79408864,2757.6,2757.5,4.066e-05]
[1645954759954,13.0577,2757.6,2757.5,4.066e-05]
[1645954760353,18.2428,2757.6,2757.5,4.066e-05]
[1645954762010,18.42314296,2757.6,2757.5,4.066e-05]
[1645954762610,0.3643,2757.4,2755.4,0.0055563]
[1645954762811,0.3643,2757.2,2755.5,1.3185181]
[1645954763011,0.00096,2757.1,2755.6,3.5]
[1645954763210,0.00096,2757.1,2755.7,1.3185181]
[1645954763411,0.36526,2757.1,2755.8,3.5]
[1645954763614,0.66526,2757.1,2756.4,1.24912895]
[1645954763816,1.65828889,2757.2,2756.4,1.24912895]
[1645954763817,0.08495191,2757.0,2756.4,1.24912895]
[1645954764749,1.18546,2757.2,2756.5,3.5]
[1645954764949,1.1845,2757.2,2756.5,3.5]
[1645954765149,1.1845,2757.2,2756.5,4.5]
[1645954765548,1.1845,2757.2,2756.5,4.0456]
[1645954766351,0.0832477,2757.4,2756.7,0.3643]
[1645954766550,0.0832477,2757.4,2756.8,15.94041089]
[1645954766756,0.0832477,2757.4,2757.0,11.4843]
[1645954766955,0.0832477,2757.4,2757.1,15.9406322]
[1645954767155,0.0832477,2757.4,2757.1,14.92]
[1645954767357,1.18476,2758.1,2757.1,16.2843]
[1645954767557,0.00554986,2757.6,2757.1,17.1911474]
[1645954767758,0.00554986,2757.6,2757.1,13.6911474]
[1645954767958,0.00554986,2757.6,2757.2,5.12129329]
[1645954768196,0.00554986,2757.6,2757.2,1.3]
[1645954768397,0.00096,2758.0,2757.2,0.5456]
[1645954768597,0.00555015,2757.6,2757.5,1.34279835]
[1645954769499,0.08420272,2758.0,2757.5,1.34279835]
[1645954769699,1.1838,2758.1,2757.5,1.34279835]
[1645954769899,0.00555786,2757.7,2757.5,1.34279835]
[1645954770499,0.00555786,2757.7,2757.3,0.3]
[1645954770700,0.00555786,2757.7,2757.2,0.3]
[1645954770898,0.00096,2758.0,2757.2,0.3]
[1645954771099,0.00555783,2757.7,2757.1,1.2068474]
[1645954771402,0.00555783,2757.7,2757.0,4.8]
[1645954771403,0.00555783,2757.7,2757.0,1.2443]
[1645954771600,0.00555783,2757.7,2757.1,1.32502876]
[1645954771869,1.46294738,2757.7,2757.0,1.0]
[1645954772057,1.45738955,2757.7,2756.6,4.5]
[1645954772257,0.18798309,2757.6,2756.7,1.32645741]
[1645954772458,0.00651775,2757.6,2756.7,1.32645741]
[1645954772858,0.18163246,2757.5,2756.7,1.32645741]
[1645954773060,0.18163246,2757.5,2756.7,2.67788429]
[1645954773259,0.00096,2757.6,2756.8,4.82645741]
[1645954773461,0.0055568,2757.6,2756.9,1.32645741]
[1645954774363,0.00096,2757.8,2757.3,1.26469214]
[1645954774560,0.1818203,2757.9,2757.4,1.32852179]
[1645954774960,0.1818203,2757.9,2757.0,4.5]
[1645954775159,0.1818203,2757.9,2757.1,1.32982841]
[1645954775160,0.00096,2757.8,2757.1,1.32982841]
[1645954775359,0.4827803,2758.0,2757.1,1.32982841]
[1645954775612,0.00096,2757.8,2757.2,1.32982841]
[1645954775809,0.1818203,2757.9,2757.3,1.32982841]
[1645954776210,0.1818203,2757.8,2757.3,1.32982841]
[1645954776411,0.1818203,2757.7,2757.3,1.32982841]
[1645954776610,0.1818203,2757.6,2757.3,1.32982841]
[1645954776811,1.5481,2758.1,2757.3,1.32982841]
[1645954777018,0.00592229,2757.6,2757.3,1.32982841]
[1645954778017,1.16870426,2757.9,2757.3,1.32982841]
[1645954778217,0.00592222,2757.6,2757.3,1.32982841]
[1645954778818,0.00592222,2757.6,2756.8,4.5]
[1645954778819,0.18236485,2757.5,2757.4,1.32982841]
[1645954779218,0.18236485,2757.5,2756.9,1.32982841]
[1645954779458,0.36526,2757.9,2757.0,1.32982841]
[1645954779662,0.18238191,2757.8,2757.1,1.32982841]
[1645954779861,0.18238191,2757.8,2757.2,1.32982841]
[1645954780063,0.00096,2757.7,2757.3,2.58707866]
[1645954780258,0.18238191,2757.8,2757.4,1.32982841]
[1645954780460,0.18238191,2757.7,2757.4,1.32982841]
[1645954780661,0.18238191,2757.6,2757.4,1.32982841]
[1645954780858,0.00096,2758.0,2757.6,0.32112016]
[1645954781059,0.18233475,2758.0,2757.6,0.32112016]
[1645954781963,0.00591778,2757.9,2757.6,0.32112016]
[1645954782165,0.18233475,2757.8,2757.6,0.32112016]
[1645954782962,0.18233475,2757.7,2757.6,0.32112016]
[1645954783402,0.18233475,2757.7,2757.6,1.65195002]
[1645954783603,0.00591784,2757.8,2757.6,1.65195002]
[1645954783801,0.00591784,2757.8,2757.7,1.33082986]
[1645954784002,1.1838,2758.1,2757.7,1.33082986]
[1645954784201,0.18226047,2758.0,2757.8,1.31241012]
[1645954784402,0.18226047,2757.9,2757.8,1.31241012]
[1645954784706,0.18226047,2758.2,2757.8,2.64263783]
[1645954784901,0.18226047,2758.1,2757.6,0.32112016]
[1645954785102,0.11242211,2758.3,2757.7,1.33026347]
[1645954785103,0.18226047,2758.0,2757.7,1.33026347]
[1645954785302,0.18226047,2757.9,2757.7,1.33026347]
[1645954785503,0.18226047,2757.8,2757.7,1.33026347]
[1645954785701,0.18226047,2758.0,2757.7,1.33026347]
[1645954786003,0.18226047,2758.0,2757.8,1.29080169]
[1645954786203,6.047e-05,2758.0,2757.9,3.5]
[1645954786403,0.00096,2758.4,2757.9,3.8643]
[1645954786605,1.2147,2758.6,2757.9,4.8643]
[1645954786868,1.2147,2758.6,2757.9,4.5]
[1645954786869,0.00562273,2758.0,2757.9,4.5]
[1645954787060,0.00562273,2758.0,2757.9,15.62]
[1645954787663,0.00096,2758.5,2758.2,11.4843]
[1645954787864,0.10681533,2758.5,2758.3,14.9843]
[1645954788064,4.3426,2759.2,2758.5,0.3643]
[1645954788065,0.00096,2759.0,2758.5,0.3643]
[1645954788263,0.8503287,2759.3,2758.4,10.5]
[1645954788264,0.00096,2759.1,2758.6,3.5]
[1645954788466,0.67769852,2759.2,2758.4,11.5]
[1645954788665,0.67769852,2759.2,2758.4,8.0]
[1645954788666,0.67673852,2759.1,2758.4,8.0]
[1645954788863,0.67673852,2759.1,2758.4,1.0]
[1645954789065,1.37642972,2759.2,2758.4,1.0]
[1645954789066,0.67673852,2759.0,2758.4,1.0]
[1645954789266,0.67769852,2759.1,2758.0,4.0789]
[1645954789464,0.00096,2758.9,2757.9,5.1]
[1645954789665,0.00096,2758.9,2757.9,4.8]
[1645954789870,0.67673852,2759.0,2758.0,1.04169893]
[1645954790066,0.00096,2758.9,2758.0,1.04169893]
[1645954790266,0.00566541,2758.6,2758.3,0.00499221]
[1645954791309,0.00096,2758.9,2758.0,5.54169893]
[1645954791508,0.00566549,2758.6,2758.3,0.00499212]
[1645954792516,0.67769852,2759.1,2758.0,4.54169893]
[1645954792713,0.00566549,2758.6,2758.3,0.00499212]
[1645954793612,0.67769852,2759.1,2758.0,5.54169893]
[1645954793813,0.00564685,2758.6,2758.3,0.00492998]
[1645954794887,0.00096,2759.1,2758.0,5.54169893]
[1645954795088,0.00564685,2758.6,2758.5,1.1241248]
[1645954795883,0.00564685,2758.6,2758.3,0.00492998]
[1645954796084,1.67156,2759.2,2757.9,0.6]
[1645954796284,0.00564689,2758.7,2758.4,0.00492989]
[1645954797289,1.16236,2759.2,2757.9,12.4843]
[1645954797488,0.00564962,2758.7,2758.4,0.00493899]
[1645954797692,0.00564962,2758.7,2758.6,1.23116322]
[1645954797888,0.00564962,2758.7,2758.4,0.00493899]
[1645954798503,2.20339852,2759.2,2757.9,1.0]
[1645954798703,0.00526846,2758.7,2758.4,0.00493899]
[1645954799504,1.09075869,2758.7,2758.4,0.00493899]
[1645954799705,1.08549023,2758.7,2757.8,1.04378935]
[1645954799904,1.09171869,2758.7,2758.4,0.00493899]
[1645954800106,1.09075869,2758.7,2758.4,0.00493899]
[1645954800315,0.00526846,2758.7,2758.4,0.00493899]
[1645954800806,1.2498,2758.8,2757.8,1.04378935]
[1645954801005,0.00115838,2758.2,2757.8,1.04378935]
[1645954801863,0.00115838,2758.2,2757.6,0.32112016]
[1645954802059,0.00115838,2758.2,2757.6,0.62112016]
[1645954802258,0.00115838,2758.2,2757.9,0.00496921]
[1645954803357,0.00115838,2758.2,2757.6,0.62112016]
[1645954803558,0.00115838,2758.2,2757.9,0.00496912]
[1645954804662,0.00115838,2758.2,2757.9,0.00496485]
[1645954805616,0.00115838,2758.2,2757.8,11.7843]
[1645954805806,0.00115838,2758.2,2757.8,12.7843]
[1645954806006,0.00115838,2758.2,2758.0,11.12]
[1645954806207,0.00115838,2758.2,2758.0,11.42]
[1645954806511,0.00115838,2758.2,2758.1,1.33190518]
[1645954809112,0.00115838,2758.2,2758.1,2.36981084]
[1645954810355,0.00115838,2758.2,2758.1,1.33190518]
[1645954812261,5.838e-05,2758.2,2758.1,5.13190518]
[1645954812558,5.838e-05,2758.2,2758.1,2.63190518]
[1645954812758,5.838e-05,2758.2,2758.1,1.63190518]
[1645954813232,5.838e-05,2758.2,2758.1,12.75190518]
[1645954813634,5.838e-05,2758.2,2758.1,13.75190518]
[1645954814038,0.00096,2759.1,2758.3,12.39072]
[1645954814238,0.00096,2759.2,2758.4,1.99620518]
[1645954814434,0.32715105,2759.5,2758.5,1.33190518]
[1645954814435,0.00581244,2758.6,2758.5,1.33190518]
[1645954814734,0.00581244,2758.6,2758.5,12.75190518]
[1645954814936,1.244e-05,2758.6,2758.5,12.75190518]
[1645954815135,1.244e-05,2758.6,2758.5,13.75190518]
[1645954815336,0.18215186,2759.2,2758.7,11.12]
[1645954815543,0.17302012,2759.7,2758.8,1.33190518]
[1645954815544,0.18215186,2759.1,2758.8,1.33190518]
[1645954815737,0.18215186,2759.6,2758.8,0.3]
[1645954815944,0.18215186,2759.5,2758.8,0.3]
[1645954816136,0.18215186,2759.5,2758.3,4.0219]
[1645954816137,1.26320848,2759.0,2758.3,4.0219]
[1645954816337,0.18215186,2758.9,2758.4,1.32786178]
[1645954816537,0.18215186,2758.8,2758.4,1.32786178]
[1645954816739,0.18215186,2758.7,2758.3,4.0219]
[1645954816961,0.18215186,2758.6,2758.4,1.32806475]
[1645954817266,0.18215186,2758.5,2757.7,2.9346]
[1645954817462,1.42077943,2758.4,2757.6,0.32112016]
[1645954817663,0.18215186,2758.3,2757.7,1.32832572]
[1645954819067,0.18215186,2758.3,2757.9,0.00585891]
[1645954819262,0.18215186,2758.3,2758.0,1.32832572]
[1645954819960,0.18215186,2758.2,2758.0,1.32832572]
[1645954820163,0.3643,2758.6,2758.0,1.32832572]
[1645954820463,0.18352903,2758.5,2758.1,1.23735067]
[1645954820714,0.18256903,2758.5,2758.1,1.23735067]
[1645954820915,1.35056896,2758.7,2758.1,1.23735067]
[1645954821117,1.34960896,2758.7,2758.1,1.23735067]
[1645954821313,1.19973737,2758.4,2758.1,1.23735067]
[1645954821614,1.19973737,2758.4,2758.3,0.00585806]
[1645954821816,0.36526,2758.6,2758.3,0.00444056]
[1645954822018,0.3643,2758.6,2758.3,0.00444056]
[1645954822418,0.3643,2758.6,2757.6,0.32112016]
[1645954822619,0.00096,2758.5,2757.6,0.32112016]
[1645954822818,1.47208329,2758.5,2757.6,1.39018928]
[1645954823119,1.47208329,2758.5,2757.6,0.32112016]
[1645954823622,1.47112329,2758.5,2757.6,0.32112016]
[1645954824018,1.47112329,2758.5,2757.9,0.00175764]
[1645954824866,1.48510744,2758.5,2757.6,0.32112016]
[1645954825063,1.48510744,2758.5,2758.1,0.00175755]
[1645954825865,0.01398415,2758.5,2758.1,0.00175755]
[1645954826065,0.01398415,2758.5,2757.6,0.32112016]
[1645954826270,0.01398415,2758.5,2758.2,0.00585473]
[1645954827271,0.01398415,2758.5,2757.8,1.04675862]
[1645954827470,0.01398415,2758.5,2757.7,0.3]
[1645954827669,0.01398415,2758.5,2758.2,0.00585463]
[1645954828513,0.01398415,2758.5,2757.6,0.32112016]
[1645954828713,0.01398415,2758.5,2758.2,0.00482613]
[1645954829115,2.41384591,2758.6,2758.2,0.00482613]
[1645954829517,0.3643,2758.4,2758.2,0.00482613]
[1645954829719,0.3643,2758.3,2757.6,0.32112016]
[1645954829918,4.84103852,2758.3,2757.6,0.32112016]
[1645954830119,1.04103852,2758.1,2757.6,0.32112016]
[1645954830618,2.14013852,2758.1,2757.6,0.32112016]
[1645954831217,0.3643,2757.9,2757.7,0.00482701]
[1645954831425,0.87858413,2757.9,2757.7,0.00482701]
[1645954831618,5.87858413,2757.9,2757.0,0.25]
[1645954831871,5.87858413,2757.9,2756.7,0.67165853]
[1645954831872,0.3643,2757.7,2756.7,0.67165853]
[1645954832071,0.3643,2757.5,2756.7,0.67165853]
[1645954832268,0.3643,2757.3,2756.6,0.67165853]
[1645954832869,0.3643,2757.3,2756.4,0.67165853]
[1645954833072,1.68038874,2757.0,2756.2,0.67165853]
[1645954833274,1.68038874,2757.0,2756.1,0.67165853]
[1645954833275,0.3643,2756.8,2756.1,0.67165853]
[1645954833473,0.3643,2756.6,2755.7,0.67165853]
[1645954833673,0.6643,2756.6,2755.6,0.67165853]
[1645954833871,0.3643,2756.5,2755.6,0.67165853]
[1645954834078,0.3643,2756.5,2755.3,4.39559857]
[1645954834079,0.3643,2756.5,2755.5,0.67165853]
[1645954834371,0.3643,2756.6,2755.6,1.34146304]